[Event "*** Titled Tuesday Blitz"]
[Site "Chess.com"]
[Date "2021.02.16"]
[Round "11"]
[White "picturesquecheck"]
[Black "kuba2006"]
[Result "0-1"]
[WhiteElo "2252"]
[BlackElo "2381"]
[TimeControl "180+1"]
[EndTime "12:11:15 PST"]
[Termination "kuba2006 won by resignation"]

1. e4 {[%clk 0:03:00.9]} 1... b6 {[%clk 0:03:00.9]} 2. d4 {[%clk 0:03:00]} 2...
Bb7 {[%clk 0:03:00.6]} 3. Bd3 {[%clk 0:03:00.6]} 3... e6 {[%clk 0:02:59.6]} 4.
Ne2 {[%clk 0:03:00.3]} 4... Nf6 {[%clk 0:02:58.4]} 5. Nd2 {[%clk 0:02:59.4]}
5... d5 {[%clk 0:02:57.5]} 6. e5 {[%clk 0:02:58.6]} 6... Ne4 {[%clk 0:02:56.9]}
7. O-O {[%clk 0:02:56.2]} 7... Be7 {[%clk 0:02:52.1]} 8. c3 {[%clk 0:02:54.7]}
8... O-O {[%clk 0:02:49.1]} 9. a3 {[%clk 0:02:54.6]} 9... c5 {[%clk 0:02:47.8]}
10. Ng3 {[%clk 0:02:51.3]} 10... Nxd2 {[%clk 0:02:30.3]} 11. Bxd2 {[%clk
0:02:49.7]} 11... Ba6 {[%clk 0:02:30.2]} 12. Bxa6 {[%clk 0:02:46.9]} 12... Nxa6
{[%clk 0:02:31.1]} 13. f4 {[%clk 0:02:41.5]} 13... f5 {[%clk 0:02:28.2]} 14.
exf6 {[%clk 0:02:30.1]} 14... Bxf6 {[%clk 0:02:27.1]} 15. Be3 {[%clk 0:02:28.9]}
15... Qd6 {[%clk 0:02:10.9]} 16. Qe2 {[%clk 0:02:14.7]} 16... Nc7 {[%clk
0:02:04.1]} 17. Rad1 {[%clk 0:02:14.5]} 17... Rae8 {[%clk 0:01:57.7]} 18. b4
{[%clk 0:02:03.4]} 18... cxd4 {[%clk 0:01:53.1]} 19. Bxd4 {[%clk 0:01:59.8]}
19... e5 {[%clk 0:01:45.4]} 20. fxe5 {[%clk 0:01:56.3]} 20... Bxe5 {[%clk
0:01:43.9]} 21. Rxf8+ {[%clk 0:01:53.7]} 21... Kxf8 {[%clk 0:01:36.8]} 22. Bxe5
{[%clk 0:01:48.6]} 22... Qxe5 {[%clk 0:01:23.7]} 23. Qd3 {[%clk 0:01:48.6]}
23... Qe3+ {[%clk 0:01:19]} 24. Kf1 {[%clk 0:01:43.2]} 24... Kg8 {[%clk
0:01:01.1]} 25. Ne2 {[%clk 0:00:56.2]} 25... Rf8+ {[%clk 0:00:52.6]} 26. Ke1
{[%clk 0:00:55.9]} 26... Qf2+ {[%clk 0:00:48.2]} 27. Kd2 {[%clk 0:00:55.3]}
27... Qxg2 {[%clk 0:00:11]} 28. Kc1 {[%clk 0:00:54.6]} 28... Rf2 {[%clk
0:00:07.6]} 29. Rd2 {[%clk 0:00:51.9]} 29... Qf1+ {[%clk 0:00:03.8]} 30. Kb2
{[%clk 0:00:50.6]} 30... Qg2 {[%clk 0:00:03.6]} 31. Kc2 {[%clk 0:00:47.3]} 31...
Qe4 {[%clk 0:00:03.5]} 32. Ng3 {[%clk 0:00:24.9]} 32... Qxd3+ {[%clk 0:00:03]}
33. Kxd3 {[%clk 0:00:25]} 33... Rxd2+ {[%clk 0:00:03]} 34. Kxd2 {[%clk
0:00:25.9]} 34... Kf7 {[%clk 0:00:03.5]} 35. Kd3 {[%clk 0:00:25.8]} 35... Ke6
{[%clk 0:00:03.5]} 36. a4 {[%clk 0:00:25.7]} 36... Ke5 {[%clk 0:00:03.2]} 37. c4
{[%clk 0:00:23]} 37... dxc4+ {[%clk 0:00:02.9]} 38. Kxc4 {[%clk 0:00:23.9]}
38... Kf4 {[%clk 0:00:03]} 39. Nh5+ {[%clk 0:00:23.5]} 39... Kf3 {[%clk
0:00:02.6]} 40. Nxg7 {[%clk 0:00:24.4]} 40... Kg2 {[%clk 0:00:02.9]} 41. h4
{[%clk 0:00:23]} 41... Kg3 {[%clk 0:00:03.4]} 42. h5 {[%clk 0:00:23.5]} 42...
Kg4 {[%clk 0:00:03.8]} 43. a5 {[%clk 0:00:23.8]} 43... Kg5 {[%clk 0:00:03.6]}
44. Kd4 {[%clk 0:00:23.4]} 44... Kh6 {[%clk 0:00:03.2]} 45. Nf5+ {[%clk
0:00:22.1]} 45... Kxh5 {[%clk 0:00:03.4]} 46. axb6 {[%clk 0:00:22.3]} 46... axb6
{[%clk 0:00:03.1]} 47. Ke5 {[%clk 0:00:20]} 47... Kg5 {[%clk 0:00:03.5]} 48. Ng3
{[%clk 0:00:19.3]} 48... Na6 {[%clk 0:00:03.4]} 49. b5 {[%clk 0:00:16.6]} 49...
Nc7 {[%clk 0:00:03.5]} 50. Kd6 {[%clk 0:00:16.9]} 50... Nxb5+ {[%clk 0:00:03.6]}
51. Kc6 {[%clk 0:00:17.5]} 51... Nc3 {[%clk 0:00:03.6]} 52. Kxb6 {[%clk
0:00:17.3]} 52... Kg4 {[%clk 0:00:04.1]} 53. Nf1 {[%clk 0:00:15.8]} 53... h5
{[%clk 0:00:03.9]} 54. Kc5 {[%clk 0:00:16.1]} 54... Kf3 {[%clk 0:00:04.1]} 55.
Kd4 {[%clk 0:00:16.3]} 55... Ne2+ {[%clk 0:00:04.2]} 56. Kd3 {[%clk 0:00:15.5]}
56... Ng3 {[%clk 0:00:04.3]} 57. Nh2+ {[%clk 0:00:15.4]} 57... Kg2 {[%clk
0:00:04.6]} 58. Ke3 {[%clk 0:00:13.6]} 58... Kxh2 {[%clk 0:00:04.6]} 0-1

[Event "*** Titled Tuesday Blitz"]
[Site "Chess.com"]
[Date "2021.02.16"]
[Round "11"]
[White "korkmaz16"]
[Black "WonderChampion"]
[Result "1-0"]
[WhiteElo "2394"]
[BlackElo "2119"]
[TimeControl "180+1"]
[EndTime "12:11:18 PST"]
[Termination "korkmaz16 won by resignation"]

1. e4 {[%clk 0:03:00.9]} 1... c5 {[%clk 0:02:59.7]} 2. Nc3 {[%clk 0:02:57]} 2...
g6 {[%clk 0:02:59]} 3. f4 {[%clk 0:02:56.5]} 3... Bg7 {[%clk 0:02:58.5]} 4. Nf3
{[%clk 0:02:57.2]} 4... e6 {[%clk 0:02:57.8]} 5. Bc4 {[%clk 0:02:54.2]} 5... Ne7
{[%clk 0:02:57.1]} 6. Qe2 {[%clk 0:02:53]} 6... O-O {[%clk 0:02:56.1]} 7. O-O
{[%clk 0:02:51.8]} 7... Nbc6 {[%clk 0:02:55.9]} 8. d3 {[%clk 0:02:50.3]} 8... d5
{[%clk 0:02:47]} 9. Bb3 {[%clk 0:02:50]} 9... a6 {[%clk 0:02:41.8]} 10. Qf2
{[%clk 0:02:49.2]} 10... d4 {[%clk 0:02:39.5]} 11. Ne2 {[%clk 0:02:48.1]} 11...
b5 {[%clk 0:02:39.2]} 12. f5 {[%clk 0:02:40.1]} 12... exf5 {[%clk 0:02:37]} 13.
Qh4 {[%clk 0:02:39.1]} 13... fxe4 {[%clk 0:02:30]} 14. Ng5 {[%clk 0:02:38.6]}
14... h5 {[%clk 0:02:24.7]} 15. Nxf7 {[%clk 0:02:34.7]} 15... Qc7 {[%clk
0:02:08.4]} 16. Bf4 {[%clk 0:02:33.4]} 16... Qb6 {[%clk 0:01:58.4]} 17. Nd6+
{[%clk 0:01:50.7]} 17... Kh7 {[%clk 0:01:53.2]} 18. Bg5 {[%clk 0:01:43.4]} 18...
Nf5 {[%clk 0:01:43.7]} 19. Nxe4 {[%clk 0:01:40.5]} 19... c4 {[%clk 0:01:31.6]}
20. Qh3 {[%clk 0:01:30.2]} 20... cxb3 {[%clk 0:01:23.6]} 21. g4 {[%clk
0:01:10.3]} 21... Ne3 {[%clk 0:01:08.9]} 22. Rxf8 {[%clk 0:01:09.4]} 22... Bxf8
{[%clk 0:01:05.1]} 23. Nf6+ {[%clk 0:01:06.8]} 23... Kh8 {[%clk 0:01:01]} 24.
Bxe3 {[%clk 0:00:52.1]} 24... dxe3 {[%clk 0:00:55.3]} 25. Qh4 {[%clk 0:00:52.5]}
25... Ne5 {[%clk 0:00:38.7]} 26. Rf1 {[%clk 0:00:47.8]} 26... Bg7 {[%clk
0:00:26.5]} 27. gxh5 {[%clk 0:00:46.2]} 27... Bxf6 {[%clk 0:00:13.9]} 28. Rxf6
{[%clk 0:00:45.6]} 28... Qb7 {[%clk 0:00:13]} 29. hxg6+ {[%clk 0:00:44.9]} 29...
Kg7 {[%clk 0:00:12.5]} 30. Rf4 {[%clk 0:00:15.3]} 30... Nf3+ {[%clk 0:00:10]}
31. Rxf3 {[%clk 0:00:15.6]} 31... Qxf3 {[%clk 0:00:10.8]} 32. Qh7+ {[%clk
0:00:15.8]} 32... Kf6 {[%clk 0:00:05.9]} 33. Qf7+ {[%clk 0:00:15.5]} 33... Kg5
{[%clk 0:00:05.7]} 34. Qxf3 {[%clk 0:00:15.9]} 34... Kxg6 {[%clk 0:00:05.8]} 35.
axb3 {[%clk 0:00:10.4]} 35... Ra7 {[%clk 0:00:03.4]} 36. Qxe3 {[%clk 0:00:10.4]}
36... Rg7 {[%clk 0:00:02.8]} 37. Ng3 {[%clk 0:00:08.9]} 37... Bg4 {[%clk
0:00:01.6]} 38. Qd4 {[%clk 0:00:05.4]} 38... Kh6 {[%clk 0:00:02.5]} 39. Qf6+
{[%clk 0:00:04.5]} 39... Kh7 {[%clk 0:00:01.3]} 40. d4 {[%clk 0:00:03.2]} 40...
Bh5 {[%clk 0:00:01.9]} 41. d5 {[%clk 0:00:03.4]} 41... Bg6 {[%clk 0:00:02.5]}
42. Qe5 {[%clk 0:00:03.7]} 42... Bf7 {[%clk 0:00:02.4]} 43. d6 {[%clk
0:00:04.1]} 43... Bg6 {[%clk 0:00:03]} 44. Qe7 {[%clk 0:00:03.2]} 44... Rxe7
{[%clk 0:00:02.9]} 45. dxe7 {[%clk 0:00:04]} 45... Be8 {[%clk 0:00:03.5]} 46. c4
{[%clk 0:00:04.4]} 46... Kg7 {[%clk 0:00:04]} 47. Nf5+ {[%clk 0:00:04.7]} 47...
Kf6 {[%clk 0:00:03.8]} 48. Nd6 {[%clk 0:00:05]} 48... Kxe7 {[%clk 0:00:03.1]}
49. Nxe8 {[%clk 0:00:05.9]} 49... Kxe8 {[%clk 0:00:04]} 50. cxb5 {[%clk
0:00:06.4]} 50... axb5 {[%clk 0:00:03.6]} 51. Kf2 {[%clk 0:00:07.3]} 51... b4
{[%clk 0:00:04.5]} 52. Ke3 {[%clk 0:00:07.9]} 52... Ke7 {[%clk 0:00:05.4]} 53.
Kd4 {[%clk 0:00:08.4]} 53... Ke6 {[%clk 0:00:06.3]} 54. Kc4 {[%clk 0:00:09]}
54... Kd6 {[%clk 0:00:07.2]} 55. Kxb4 {[%clk 0:00:09.6]} 55... Kc6 {[%clk
0:00:08.1]} 56. h4 {[%clk 0:00:10.3]} 56... Kb6 {[%clk 0:00:09]} 57. h5 {[%clk
0:00:11.2]} 57... Kc6 {[%clk 0:00:09.9]} 58. h6 {[%clk 0:00:12.1]} 58... Kd7
{[%clk 0:00:10.8]} 59. h7 {[%clk 0:00:13]} 1-0

[Event "*** Titled Tuesday Blitz"]
[Site "Chess.com"]
[Date "2021.02.16"]
[Round "11"]
[White "stepakyedael"]
[Black "noamapplesauce"]
[Result "0-1"]
[WhiteElo "2320"]
[BlackElo "2163"]
[TimeControl "180+1"]
[EndTime "12:11:19 PST"]
[Termination "noamapplesauce won by checkmate"]

1. d4 {[%clk 0:03:00.9]} 1... d5 {[%clk 0:02:59.7]} 2. Nf3 {[%clk 0:02:59.7]}
2... Nf6 {[%clk 0:02:59.6]} 3. e3 {[%clk 0:03:00.2]} 3... g6 {[%clk 0:02:49]} 4.
c4 {[%clk 0:03:00.6]} 4... c6 {[%clk 0:02:48.5]} 5. Nc3 {[%clk 0:03:00.5]} 5...
Bg7 {[%clk 0:02:49]} 6. h3 {[%clk 0:02:58.1]} 6... O-O {[%clk 0:02:49.4]} 7. Qb3
{[%clk 0:02:58]} 7... Nbd7 {[%clk 0:02:26.3]} 8. cxd5 {[%clk 0:02:56.2]} 8...
cxd5 {[%clk 0:02:22.9]} 9. Nxd5 {[%clk 0:02:55.7]} 9... Qa5+ {[%clk 0:02:11.1]}
10. Nc3 {[%clk 0:02:55.2]} 10... e5 {[%clk 0:02:11.6]} 11. Bd2 {[%clk
0:02:54.6]} 11... exd4 {[%clk 0:02:10.6]} 12. Nxd4 {[%clk 0:02:47.3]} 12... Re8
{[%clk 0:01:57.1]} 13. Be2 {[%clk 0:02:45.3]} 13... Qg5 {[%clk 0:01:54.8]} 14.
O-O {[%clk 0:02:38.9]} 14... Ne5 {[%clk 0:01:53.7]} 15. Kh2 {[%clk 0:02:28]}
15... b6 {[%clk 0:01:46.9]} 16. f4 {[%clk 0:02:26.6]} 16... Qh6 {[%clk
0:01:22.6]} 17. fxe5 {[%clk 0:02:24.3]} 17... Rxe5 {[%clk 0:01:22.7]} 18. Nc6
{[%clk 0:02:12]} 18... Re8 {[%clk 0:01:16.1]} 19. Qb4 {[%clk 0:02:01.1]} 19...
Bb7 {[%clk 0:01:06.3]} 20. Bf3 {[%clk 0:01:55.2]} 20... a5 {[%clk 0:01:04.2]}
21. Qf4 {[%clk 0:01:53.6]} 21... g5 {[%clk 0:00:56.7]} 22. Qg3 {[%clk
0:01:41.5]} 22... g4 {[%clk 0:00:51]} 23. Bxg4 {[%clk 0:01:31.6]} 23... Bxc6
{[%clk 0:00:46]} 24. Bf3 {[%clk 0:01:29]} 24... Bxf3 {[%clk 0:00:44.6]} 25. Qxf3
{[%clk 0:01:26.4]} 25... Rad8 {[%clk 0:00:43.6]} 26. Rad1 {[%clk 0:01:25]} 26...
Qg6 {[%clk 0:00:38.4]} 27. Bc1 {[%clk 0:01:20.1]} 27... Rxd1 {[%clk 0:00:30]}
28. Rxd1 {[%clk 0:01:18.9]} 28... h5 {[%clk 0:00:29.7]} 29. Rf1 {[%clk
0:01:08.6]} 29... h4 {[%clk 0:00:27.1]} 30. Qf5 {[%clk 0:01:06.5]} 30... Qg3+
{[%clk 0:00:26.3]} 31. Kh1 {[%clk 0:01:05.7]} 31... Re6 {[%clk 0:00:19.4]} 32.
Qf3 {[%clk 0:01:05.3]} 32... Qe5 {[%clk 0:00:17.5]} 33. Qf5 {[%clk 0:00:59.8]}
33... Nh5 {[%clk 0:00:15.2]} 34. Qxe5 {[%clk 0:00:58]} 34... Bxe5 {[%clk
0:00:13.7]} 35. Rf3 {[%clk 0:00:52.6]} 35... Ng3+ {[%clk 0:00:09.9]} 36. Kg1
{[%clk 0:00:51.5]} 36... Bxc3 {[%clk 0:00:09.9]} 37. bxc3 {[%clk 0:00:50.7]}
37... Ne2+ {[%clk 0:00:10.5]} 38. Kf1 {[%clk 0:00:50.6]} 38... Nxc1 {[%clk
0:00:11.4]} 39. Rf4 {[%clk 0:00:48.9]} 39... Nxa2 {[%clk 0:00:11.3]} 40. Rg4+
{[%clk 0:00:48.4]} 40... Kf8 {[%clk 0:00:10.6]} 41. Rxh4 {[%clk 0:00:48.4]}
41... Nxc3 {[%clk 0:00:10.7]} 42. Rh8+ {[%clk 0:00:48.1]} 42... Ke7 {[%clk
0:00:10.8]} 43. Rb8 {[%clk 0:00:47]} 43... a4 {[%clk 0:00:10.4]} 44. Rb7+ {[%clk
0:00:45.4]} 44... Kf6 {[%clk 0:00:10.2]} 45. Ra7 {[%clk 0:00:45.4]} 45... b5
{[%clk 0:00:09.8]} 46. Ke1 {[%clk 0:00:42]} 46... Rd6 {[%clk 0:00:09.7]} 47. e4
{[%clk 0:00:40.6]} 47... Nxe4 {[%clk 0:00:08.6]} 48. Ke2 {[%clk 0:00:37.2]}
48... Nc3+ {[%clk 0:00:08.8]} 49. Ke3 {[%clk 0:00:37]} 49... b4 {[%clk
0:00:09.1]} 50. g4 {[%clk 0:00:35.4]} 50... a3 {[%clk 0:00:09.1]} 51. Kf4 {[%clk
0:00:34.5]} 51... Rd4+ {[%clk 0:00:08]} 52. Ke3 {[%clk 0:00:33.7]} 52... Rd6
{[%clk 0:00:06.9]} 53. Kf4 {[%clk 0:00:33.2]} 53... a2 {[%clk 0:00:06.7]} 54.
g5+ {[%clk 0:00:32.9]} 54... Kg6 {[%clk 0:00:05.9]} 55. h4 {[%clk 0:00:32.8]}
55... b3 {[%clk 0:00:05.9]} 56. Kg4 {[%clk 0:00:32]} 56... Rd4+ {[%clk
0:00:06.3]} 57. Kf3 {[%clk 0:00:31.1]} 57... b2 {[%clk 0:00:06.1]} 58. h5+
{[%clk 0:00:30.4]} 58... Kxh5 {[%clk 0:00:05.9]} 59. Ra5 {[%clk 0:00:29.4]}
59... Kg6 {[%clk 0:00:04.8]} 60. Ke3 {[%clk 0:00:27.9]} 60... Rd5 {[%clk
0:00:04.5]} 61. Ra3 {[%clk 0:00:27]} 61... b1=Q {[%clk 0:00:03.7]} 62. Rxc3
{[%clk 0:00:26]} 62... Qe1+ {[%clk 0:00:04.5]} 63. Kf4 {[%clk 0:00:24.9]} 63...
Qxc3 {[%clk 0:00:05.2]} 64. Kg4 {[%clk 0:00:23.5]} 64... Qe5 {[%clk 0:00:05.3]}
65. Kf3 {[%clk 0:00:22]} 65... Rd3+ {[%clk 0:00:05.2]} 66. Kf2 {[%clk
0:00:21.8]} 66... Qe3+ {[%clk 0:00:05]} 67. Kf1 {[%clk 0:00:20.7]} 67... a1=Q+
{[%clk 0:00:05.4]} 68. Kg2 {[%clk 0:00:20.5]} 68... Rd2# {[%clk 0:00:05.9]} 0-1

[Event "*** Titled Tuesday Blitz"]
[Site "Chess.com"]
[Date "2021.02.16"]
[Round "11"]
[White "kleopl"]
[Black "TC2304"]
[Result "0-1"]
[WhiteElo "2454"]
[BlackElo "2365"]
[TimeControl "180+1"]
[EndTime "12:11:28 PST"]
[Termination "TC2304 won on time"]

1. e4 {[%clk 0:03:00.9]} 1... c5 {[%clk 0:02:59.7]} 2. Nc3 {[%clk 0:03:00.2]}
2... a6 {[%clk 0:02:59.7]} 3. d4 {[%clk 0:02:57.5]} 3... cxd4 {[%clk 0:02:59.4]}
4. Qxd4 {[%clk 0:02:58.4]} 4... Nc6 {[%clk 0:02:59.6]} 5. Qd2 {[%clk 0:02:58.4]}
5... g6 {[%clk 0:02:59.5]} 6. b3 {[%clk 0:02:56.9]} 6... Bg7 {[%clk 0:02:53]} 7.
Bb2 {[%clk 0:02:56.5]} 7... Nf6 {[%clk 0:02:51.9]} 8. O-O-O {[%clk 0:02:54.6]}
8... O-O {[%clk 0:02:52.4]} 9. f3 {[%clk 0:02:54.6]} 9... b5 {[%clk 0:02:42.6]}
10. Kb1 {[%clk 0:02:54]} 10... Bb7 {[%clk 0:02:40.1]} 11. g4 {[%clk 0:02:52]}
11... d6 {[%clk 0:02:33.7]} 12. h4 {[%clk 0:02:50.8]} 12... h5 {[%clk
0:02:30.3]} 13. gxh5 {[%clk 0:02:43.2]} 13... Nxh5 {[%clk 0:02:31.2]} 14. Nge2
{[%clk 0:02:43.2]} 14... Ne5 {[%clk 0:02:30]} 15. Bg2 {[%clk 0:02:38.8]} 15...
Rc8 {[%clk 0:02:19]} 16. Nd5 {[%clk 0:02:35.2]} 16... Bxd5 {[%clk 0:02:10.1]}
17. Qxd5 {[%clk 0:02:32.7]} 17... Qd7 {[%clk 0:02:03.3]} 18. Rdg1 {[%clk
0:02:17.5]} 18... e6 {[%clk 0:01:52.4]} 19. Qd1 {[%clk 0:02:15.5]} 19... d5
{[%clk 0:01:51.7]} 20. f4 {[%clk 0:02:09.2]} 20... Ng4 {[%clk 0:01:44.2]} 21.
Bxg7 {[%clk 0:02:05.9]} 21... Nxg7 {[%clk 0:01:37.4]} 22. Qd2 {[%clk 0:01:29.4]}
22... Qa7 {[%clk 0:01:14.2]} 23. exd5 {[%clk 0:01:26.6]} 23... Ne3 {[%clk
0:01:07.9]} 24. Nd4 {[%clk 0:01:14.6]} 24... Ngf5 {[%clk 0:00:37.9]} 25. Nxf5
{[%clk 0:01:09]} 25... exf5 {[%clk 0:00:38.8]} 26. h5 {[%clk 0:01:07]} 26...
Rxc2 {[%clk 0:00:35.3]} 27. Qd3 {[%clk 0:01:06.6]} 27... Rxg2 {[%clk 0:00:31.3]}
28. hxg6 {[%clk 0:01:02.2]} 28... fxg6 {[%clk 0:00:25]} 29. Re1 {[%clk
0:00:56.9]} 29... Ng4 {[%clk 0:00:20.6]} 30. Qc3 {[%clk 0:00:57]} 30... Qg7
{[%clk 0:00:18.9]} 31. Qxg7+ {[%clk 0:00:47.5]} 31... Kxg7 {[%clk 0:00:19.8]}
32. d6 {[%clk 0:00:48]} 32... Rf7 {[%clk 0:00:13.9]} 33. Re8 {[%clk 0:00:32.9]}
33... Rd2 {[%clk 0:00:13.1]} 34. Rhh8 {[%clk 0:00:30.7]} 34... Nf6 {[%clk
0:00:13.6]} 35. Rd8 {[%clk 0:00:29]} 35... Rd7 {[%clk 0:00:10.8]} 36. Rxd7+
{[%clk 0:00:23.3]} 36... Nxd7 {[%clk 0:00:10.5]} 37. Rd8 {[%clk 0:00:23.9]}
37... Rxd6 {[%clk 0:00:10.4]} 38. Kc2 {[%clk 0:00:24]} 38... Kf6 {[%clk
0:00:09.3]} 39. Kc3 {[%clk 0:00:22.9]} 39... Ke7 {[%clk 0:00:08]} 40. Rg8 {[%clk
0:00:22]} 40... a5 {[%clk 0:00:06.6]} 41. a3 {[%clk 0:00:20.7]} 41... Nb6 {[%clk
0:00:06.6]} 42. Rg7+ {[%clk 0:00:19.8]} 42... Kd8 {[%clk 0:00:05.7]} 43. Rb7
{[%clk 0:00:16.1]} 43... Nd5+ {[%clk 0:00:05.3]} 44. Kd4 {[%clk 0:00:16.4]}
44... b4 {[%clk 0:00:05.4]} 45. axb4 {[%clk 0:00:11]} 45... Nxb4+ {[%clk
0:00:05.4]} 46. Ke5 {[%clk 0:00:11.2]} 46... Rc6 {[%clk 0:00:04.6]} 47. Ra7
{[%clk 0:00:09.2]} 47... Nd3+ {[%clk 0:00:03.3]} 48. Kd4 {[%clk 0:00:08.8]}
48... Nc1 {[%clk 0:00:03.5]} 49. Rb7 {[%clk 0:00:05.1]} 49... Ra6 {[%clk
0:00:02.3]} 50. Kc3 {[%clk 0:00:04.5]} 50... a4 {[%clk 0:00:02.4]} 51. bxa4
{[%clk 0:00:04.7]} 51... Rxa4 {[%clk 0:00:03.1]} 52. Kd2 {[%clk 0:00:05.1]}
52... Na2 {[%clk 0:00:02.8]} 53. Ke3 {[%clk 0:00:04.8]} 53... Nb4 {[%clk
0:00:02.6]} 54. Rg7 {[%clk 0:00:04.2]} 54... Ra6 {[%clk 0:00:01.9]} 55. Kd4
{[%clk 0:00:03.6]} 55... Ke8 {[%clk 0:00:01.8]} 56. Rb7 {[%clk 0:00:03.3]} 56...
Nc6+ {[%clk 0:00:02.2]} 57. Kc5 {[%clk 0:00:03.4]} 57... Ne7 {[%clk 0:00:03.1]}
58. Kd4 {[%clk 0:00:01.4]} 58... Rf6 {[%clk 0:00:03.7]} 59. Ke5 {[%clk
0:00:01.3]} 59... Kf7 {[%clk 0:00:04.6]} 60. Ra7 {[%clk 0:00:00.2]} 60... Re6+
{[%clk 0:00:05.1]} 0-1

[Event "*** Titled Tuesday Blitz"]
[Site "Chess.com"]
[Date "2021.02.16"]
[Round "11"]
[White "arminmusovic"]
[Black "juancruzarias"]
[Result "0-1"]
[WhiteElo "2502"]
[BlackElo "2644"]
[TimeControl "180+1"]
[EndTime "12:11:31 PST"]
[Termination "juancruzarias won by checkmate"]

1. a3 {[%clk 0:03:00.9]} 1... d5 {[%clk 0:02:59.9]} 2. Nc3 {[%clk 0:03:01]} 2...
c6 {[%clk 0:03:00.1]} 3. e4 {[%clk 0:03:01.3]} 3... Nf6 {[%clk 0:02:59.5]} 4. e5
{[%clk 0:03:01.4]} 4... Nfd7 {[%clk 0:03:00.2]} 5. f4 {[%clk 0:03:01.9]} 5...
Nb6 {[%clk 0:02:59.8]} 6. Nf3 {[%clk 0:03:02.2]} 6... Bg4 {[%clk 0:02:59.4]} 7.
h3 {[%clk 0:03:02.5]} 7... Bxf3 {[%clk 0:02:58.4]} 8. Qxf3 {[%clk 0:03:03.4]}
8... e6 {[%clk 0:02:59]} 9. Be2 {[%clk 0:03:01.8]} 9... N8d7 {[%clk 0:02:59.3]}
10. O-O {[%clk 0:03:02]} 10... Bc5+ {[%clk 0:02:58.9]} 11. Kh1 {[%clk
0:03:01.7]} 11... h5 {[%clk 0:02:59.2]} 12. b4 {[%clk 0:02:57.8]} 12... Be7
{[%clk 0:02:59.8]} 13. d4 {[%clk 0:02:56.2]} 13... g6 {[%clk 0:02:59.9]} 14. Nd1
{[%clk 0:02:54.4]} 14... a5 {[%clk 0:03:00]} 15. b5 {[%clk 0:02:47]} 15... c5
{[%clk 0:03:00.3]} 16. c3 {[%clk 0:02:47.1]} 16... a4 {[%clk 0:02:49.5]} 17. Ne3
{[%clk 0:02:45.2]} 17... Qc7 {[%clk 0:02:49.1]} 18. Bd2 {[%clk 0:02:41.5]} 18...
O-O-O {[%clk 0:02:38.4]} 19. Rfc1 {[%clk 0:02:36]} 19... c4 {[%clk 0:02:32.7]}
20. Nc2 {[%clk 0:02:36.3]} 20... Kb8 {[%clk 0:02:24.8]} 21. Rcb1 {[%clk
0:02:36.5]} 21... h4 {[%clk 0:02:17.8]} 22. Bd1 {[%clk 0:02:35.6]} 22... Nc8
{[%clk 0:02:17]} 23. b6 {[%clk 0:02:31.3]} 23... Ndxb6 {[%clk 0:02:17]} 24. Nb4
{[%clk 0:02:28.6]} 24... Ka7 {[%clk 0:02:12.4]} 25. Bc2 {[%clk 0:02:27.9]} 25...
Bf8 {[%clk 0:02:09.1]} 26. Qd1 {[%clk 0:02:27.8]} 26... Qd7 {[%clk 0:02:09.4]}
27. Rb2 {[%clk 0:02:28.3]} 27... Ne7 {[%clk 0:01:54.1]} 28. Rab1 {[%clk
0:02:27.3]} 28... Rb8 {[%clk 0:01:53.2]} 29. Na2 {[%clk 0:02:24.9]} 29... Nec8
{[%clk 0:01:48.1]} 30. Rb5 {[%clk 0:02:24.1]} 30... Ka6 {[%clk 0:01:38.3]} 31.
Bxa4 {[%clk 0:02:22.5]} 31... Qc7 {[%clk 0:01:30.3]} 32. Nb4+ {[%clk 0:02:20.6]}
32... Bxb4 {[%clk 0:01:29.9]} 33. axb4 {[%clk 0:02:11.8]} 33... Na8 {[%clk
0:01:12.1]} 34. Rc5 {[%clk 0:01:54.3]} 34... Qd8 {[%clk 0:01:09.8]} 35. Ra1
{[%clk 0:01:45.1]} 35... Kb6 {[%clk 0:01:06.9]} 36. Bb5 {[%clk 0:01:34]} 36...
Nc7 {[%clk 0:01:02.1]} 37. Ra5 {[%clk 0:01:26.2]} 37... Na7 {[%clk 0:00:43.4]}
38. Rxa7 {[%clk 0:01:08.8]} 38... Kxa7 {[%clk 0:00:42.1]} 39. Rxc7 {[%clk
0:01:07.3]} 39... Kb6 {[%clk 0:00:35.5]} 40. Rc5 {[%clk 0:01:00]} 40... Ra8
{[%clk 0:00:35.5]} 41. Be3 {[%clk 0:00:49.1]} 41... Ra3 {[%clk 0:00:26.9]} 42.
Bxc4 {[%clk 0:00:45.1]} 42... Qa8 {[%clk 0:00:26.9]} 43. Kh2 {[%clk 0:00:36.3]}
43... Qa4 {[%clk 0:00:19.5]} 44. Rb5+ {[%clk 0:00:34.4]} 44... Kc6 {[%clk
0:00:19.4]} 45. Rc5+ {[%clk 0:00:32.2]} 45... Kb6 {[%clk 0:00:20]} 46. Qf3
{[%clk 0:00:29.1]} 46... dxc4 {[%clk 0:00:18.7]} 47. d5 {[%clk 0:00:29.1]} 47...
Qb3 {[%clk 0:00:05.1]} 48. dxe6 {[%clk 0:00:24.9]} 48... fxe6 {[%clk 0:00:04.9]}
49. Rc6+ {[%clk 0:00:15.2]} 49... Kb5 {[%clk 0:00:05.3]} 50. Rc7 {[%clk
0:00:15.8]} 50... Ka4 {[%clk 0:00:05.4]} 51. Rxb7 {[%clk 0:00:14.8]} 51... Qxc3
{[%clk 0:00:06.3]} 52. Qc6+ {[%clk 0:00:13.9]} 52... Kb3 {[%clk 0:00:06.6]} 53.
Bc5 {[%clk 0:00:12.4]} 53... Qg3+ {[%clk 0:00:06.7]} 54. Kh1 {[%clk 0:00:11.8]}
54... Ra1+ {[%clk 0:00:07.6]} 55. Bg1 {[%clk 0:00:12]} 55... Qe3 {[%clk
0:00:07.3]} 56. Qf3 {[%clk 0:00:10.5]} 56... Qxf3 {[%clk 0:00:07.5]} 57. gxf3
{[%clk 0:00:10.7]} 57... Rd8 {[%clk 0:00:08.4]} 58. Kg2 {[%clk 0:00:03.9]} 58...
Rd2+ {[%clk 0:00:08.7]} 59. Bf2 {[%clk 0:00:03.3]} 59... Raa2 {[%clk 0:00:09.2]}
60. Rc7 {[%clk 0:00:02.4]} 60... Rxf2+ {[%clk 0:00:10.1]} 61. Kg1 {[%clk
0:00:02.6]} 61... Rfc2 {[%clk 0:00:10]} 62. Rxc4 {[%clk 0:00:02.3]} 62... Rxc4
{[%clk 0:00:10.9]} 63. b5 {[%clk 0:00:01.6]} 63... Rc1# {[%clk 0:00:11.8]} 0-1